bitfinex-derivatives/quotes_ETHF0:USTF0_20240901
["timestamp","ask_amount","ask_price","bid_price","bid_amount"]
[1725199946232,0.00613209,2448.1,2448.0,3.61631]
[1725199946735,0.00613209,2448.1,2448.0,7.70111]
[1725199946924,0.40832,2449.2,2448.0,18.67614522]
[1725199947224,0.40828,2449.5,2448.8,0.40838]
[1725199947426,3.2078,2449.6,2448.4,0.5755]
[1725199947730,0.40828,2449.4,2448.7,0.4084]
[1725199947919,3.2078,2449.6,2448.8,0.00613209]
[1725199947920,0.00613209,2449.3,2448.8,0.00613209]
[1725199948126,0.00613209,2449.3,2449.1,0.40832]
[1725199948327,0.00613209,2449.3,2449.0,3.2078]
[1725199948528,3.8704,2450.0,2449.2,5.28623467]
[1725199948731,3.8704,2450.0,2449.7,3.2078]
[1725199948932,3.8704,2450.0,2449.4,3.2078]
[1725199949124,3.8704,2450.0,2447.9,0.4088]
[1725199949125,3.2078,2449.8,2448.9,3.2078]
[1725199949531,4.89086,2450.0,2448.9,3.2078]
[1725199949532,3.2078,2449.5,2448.9,3.2078]
[1725199949840,0.00613209,2449.6,2448.8,0.58053209]
[1725199950133,0.00613209,2449.6,2449.0,8.47229094]
[1725199950341,0.00613209,2449.6,2449.0,3.2078]
[1725199950731,0.00613209,2449.6,2449.1,5.67281094]
[1725199950934,0.00613209,2449.6,2449.1,9.75521094]
[1725199951535,0.00613209,2449.6,2449.1,5.26449094]
[1725199951725,0.00613209,2449.6,2449.1,5.79109094]
[1725199952425,0.00613209,2449.6,2449.1,10.28181094]
[1725199952936,0.00613209,2449.6,2449.2,0.40831]
[1725199953141,0.00613209,2449.6,2449.1,9.87349094]
[1725199953339,0.00613209,2449.6,2449.3,5.29301283]
[1725199953523,0.00613209,2449.6,2449.1,0.5266]
[1725199953524,0.00613209,2449.6,2449.2,5.29301283]
[1725199953930,0.00613209,2449.6,2449.1,0.5266]
[1725199954331,0.00613209,2449.6,2449.2,5.39582783]
[1725199954629,0.00613209,2449.6,2449.2,5.80462783]
[1725199954932,0.00613209,2449.6,2449.2,5.39582783]
[1725199955134,0.41438209,2449.6,2449.1,0.5266]
[1725199955434,0.00613209,2449.6,2449.1,3.7344]
[1725199955635,0.40826,2449.5,2449.1,3.7344]
[1725199955833,0.00613209,2449.6,2449.1,3.7344]
[1725199956031,0.00613209,2449.6,2449.2,5.21213684]
[1725199956336,0.00613209,2449.6,2449.1,3.7344]
[1725199956525,0.00613209,2449.6,2449.3,5.21213684]
[1725199956831,0.00613209,2449.6,2449.2,5.21213684]
[1725199957035,0.40828,2449.5,2449.1,3.7344]
[1725199957233,0.41438209,2449.6,2449.1,3.7344]
[1725199957430,0.40826,2449.5,2449.1,3.7344]
[1725199957734,0.00613209,2449.6,2449.1,3.7344]
[1725199958432,0.00613209,2449.6,2449.2,0.4083]
[1725199958636,0.00613209,2449.6,2449.2,5.64284629]
[1725199958836,0.00613209,2449.6,2449.3,0.40829]
[1725199959037,0.00613209,2449.6,2449.4,4.0824]
[1725199959239,0.00613209,2449.6,2449.4,5.25172785]
[1725199959438,0.00613209,2449.6,2449.4,4.0824]
[1725199959745,0.00613209,2449.6,2449.5,4.0824]
[1725199960032,0.00613209,2449.6,2449.3,9.8479093]
[1725199960246,0.00613209,2449.6,2449.3,5.3572193]
[1725199960541,0.00613209,2449.6,2449.3,4.0824]
[1725199960841,0.00613209,2449.6,2449.4,9.82741707]
[1725199961144,0.00613209,2449.6,2449.5,0.5816]
[1725199961539,0.00613209,2449.6,2449.5,10.00073707]
[1725199961839,3.8704,2450.0,2449.5,11.07225]
[1725199962041,3.8704,2450.0,2449.5,6.19112673]
[1725199962233,3.8704,2450.0,2449.6,4.0824]
[1725199962540,3.8704,2450.0,2449.8,0.4082]
[1725199962729,3.8704,2450.0,2449.9,0.4082]
[1725199962932,3.8704,2450.0,2449.9,10.30761506]
[1725199962933,2.9034,2450.0,2449.9,10.30761506]
[1725199963126,2.8719726,2450.0,2449.9,16.30761506]
[1725199963533,0.00613209,2450.1,2450.0,0.40818]
[1725199963728,0.00613209,2450.1,2450.0,7.69758]
[1725199963936,0.00613209,2450.1,2450.0,19.00670336]
[1725199964931,0.40804,2450.9,2450.2,0.40813]
[1725199965135,3.2078,2451.1,2450.0,18.59852336]
[1725199965136,0.40802,2451.0,2450.0,8.51692336]
[1725199965336,0.40802,2451.0,2450.3,5.33607946]
[1725199965530,3.2078,2451.1,2450.4,0.40811]
[1725199965730,1.02429,2451.2,2450.5,0.4081]
[1725199966045,1.01967,2451.9,2450.7,0.40806]
[1725199966046,0.00613209,2451.1,2450.7,0.40806]
[1725199966230,0.00613209,2451.1,2450.6,5.32253891]
[1725199966435,3.21393209,2451.1,2450.6,0.00613209]
[1725199966636,0.00613209,2451.1,2450.6,0.00613209]
[1725199966835,0.40806,2450.7,2450.6,0.00613209]
[1725199967034,0.40805,2450.8,2450.6,0.00613209]
[1725199967330,0.6404,2451.0,2450.6,0.00613209]
[1725199967331,0.40806,2450.7,2450.6,0.00613209]
[1725199967531,0.40806,2450.7,2448.5,2.07753341]
[1725199967532,0.40816,2450.1,2449.8,3.2078]
[1725199967937,3.2078,2450.4,2449.8,3.2078]
[1725199967938,0.40818,2450.0,2449.8,3.2078]
[1725199968245,0.40816,2450.1,2449.8,3.2078]
[1725199968439,0.40815,2450.2,2449.8,3.2078]
[1725199968634,0.40816,2450.1,2449.8,3.2078]
[1725199968831,0.40818,2450.0,2449.8,3.2078]
[1725199969037,3.2078,2450.0,2449.7,0.0061192]
[1725199969340,9.29957734,2450.3,2449.7,0.0061192]
[1725199969541,3.2078,2450.0,2449.7,0.0061192]
[1725199970045,0.40821,2449.8,2449.7,0.0061192]
[1725199970643,1.02058,2449.7,2448.7,3.2078]
[1725199970841,0.40838,2448.8,2448.7,3.2078]
[1725199971042,0.40838,2448.8,2448.1,0.19963346]
[1725199971043,1.02091,2448.9,2448.1,3.2078]
[1725199971250,0.40845,2448.4,2448.1,3.2078]
[1725199971444,3.2078,2448.8,2448.1,3.2078]
[1725199971445,0.40846,2448.3,2448.1,3.2078]
[1725199971747,0.0061192,2448.4,2448.1,3.2078]
[1725199972349,0.4145792,2448.4,2448.1,3.2078]
[1725199972542,0.0061192,2448.4,2448.1,3.2078]
[1725199972848,0.0061192,2448.4,2448.2,9.40742358]
[1725199973035,0.0061192,2448.4,2448.3,0.40846]
[1725199973239,0.0061192,2448.4,2448.3,4.49246]
[1725199973535,1.2428,2449.1,2448.5,0.40843]
[1725199973536,1.65113,2449.1,2448.5,0.40843]
[1725199973940,1.65113,2449.1,2448.6,5.34502593]
[1725199974339,3.2078,2449.6,2448.6,5.34502593]
[1725199974644,3.2078,2449.6,2448.7,0.4088]
[1725199974645,0.0061192,2449.3,2448.7,0.4088]
[1725199975042,0.0061192,2449.3,2448.8,5.27188804]
[1725199975450,0.4144192,2449.3,2448.8,5.27188804]
[1725199975654,0.0061192,2449.3,2448.7,0.4088]
[1725199975844,0.40836,2449.0,2448.7,0.4088]
[1725199976245,3.2139192,2449.3,2448.5,1.6268]
[1725199976446,0.40836,2449.0,2448.5,1.6268]
[1725199976640,3.2139192,2449.3,2448.6,5.3674439]
[1725199977366,5.03856555,2449.2,2448.6,0.4084]
[1725199977558,0.40834,2449.1,2448.7,5.22166025]
[1725199977746,0.40838,2448.9,2448.3,0.81725]
[1725199977948,0.40839,2448.8,2448.2,6.03981344]
[1725199978148,0.40839,2448.8,2448.4,5.22254344]
[1725199978351,0.40837,2448.9,2448.3,0.40846]
[1725199978650,3.2078,2449.1,2448.5,5.22254344]
[1725199978948,0.0061192,2449.3,2448.7,0.40838]
[1725199978949,0.4144192,2449.3,2448.7,0.40838]
[1725199979148,0.0061192,2449.3,2448.5,0.4088]
[1725199979353,0.0061192,2449.3,2448.9,0.40835]
[1725199979852,0.0061192,2449.3,2449.0,0.40834]
[1725199980059,0.0061192,2449.3,2449.0,5.37674885]
[1725199980242,0.0061192,2449.3,2449.2,0.40831]
[1725199980649,0.0061192,2449.3,2449.2,4.49151]
[1725199980955,0.0061192,2449.3,2449.2,9.86756738]
[1725199981152,0.0061192,2449.3,2449.2,9.45925738]
[1725199982046,0.0061192,2449.3,2449.2,9.86756738]
[1725199983247,0.0061192,2449.3,2449.2,4.0832]
[1725199983556,0.0061192,2449.3,2448.9,1.242]
[1725199983557,0.0061192,2449.3,2448.9,4.4498]
[1725199983742,3.2078,2449.0,2448.6,3.2078]
[1725199983948,0.4084,2448.7,2448.6,3.2078]
[1725199984150,0.40844,2448.5,2448.1,8.59746488]
[1725199984351,0.40845,2448.4,2448.0,0.0061192]
[1725199984553,3.2078,2448.7,2448.0,0.0061192]
[1725199984746,3.2078,2448.7,2448.1,5.38966488]
[1725199984952,3.2078,2448.7,2448.0,0.0061192]
[1725199985147,0.40845,2448.4,2448.0,0.0061192]
[1725199986348,0.40848,2448.2,2448.0,0.0061192]
[1725199987557,0.4085,2448.1,2448.0,0.0061192]
[1725199987951,3.2078,2448.4,2448.0,0.0061192]
[1725199988150,0.40847,2448.3,2448.0,0.0061192]
[1725199988365,1.04360602,2449.0,2448.4,0.40843]
[1725199988963,1.45195602,2449.0,2448.3,0.40846]
[1725199989162,1.04360602,2449.0,2448.1,16.84004031]
[1725199989456,1.04360602,2449.0,2448.5,0.40842]
[1725199989965,1.04360602,2449.0,2448.7,0.40838]
[1725199990147,1.04360602,2449.0,2448.7,0.4084]
[1725199990352,1.04360602,2449.0,2448.8,5.29952577]
[1725199992460,1.04360602,2449.0,2448.8,5.70790577]
[1725199992967,1.04360602,2449.0,2448.8,5.29952577]
[1725199993162,0.0061192,2449.3,2448.8,5.29952577]
[1725199993560,0.0061192,2449.3,2448.8,5.70789577]
[1725199993759,0.4144192,2449.3,2448.8,5.29952577]
[1725199994064,0.0061192,2449.3,2448.8,5.29952577]
[1725199994250,0.0061192,2449.3,2448.8,5.70789577]
[1725199994451,0.0061192,2449.3,2448.8,5.29952577]
[1725199994761,0.0061192,2449.3,2449.2,0.40831]
[1725199995168,0.0061192,2449.3,2449.2,15.85338615]
[1725199995556,0.0061192,2449.3,2449.2,16.43408615]
[1725199995753,0.0061192,2449.3,2449.2,10.02577615]
[1725199996069,0.0061192,2449.3,2449.2,9.44507615]
[1725199996256,0.0061192,2449.3,2449.2,5.77018615]
[1725199996453,0.0061192,2449.3,2449.2,9.85338615]
[1725199996656,0.0061192,2449.3,2449.2,15.85338615]
[1725199997063,0.0061192,2449.3,2449.2,9.85338615]
[1725199997268,0.0061192,2449.3,2449.2,15.85338615]
[1725199997471,4.4542,2450.4,2449.2,24.20834361]
[1725199997669,4.4542,2450.4,2449.2,14.12514361]
[1725199997865,4.4542,2450.4,2449.3,0.40829]
[1725199997866,0.40821,2449.9,2449.3,0.40829]
[1725199998168,0.40821,2449.9,2449.4,5.41262305]
[1725199998465,0.0061192,2449.9,2449.4,5.41874225]
[1725199998669,0.4143292,2449.9,2449.4,5.41874225]
[1725199998858,0.0061192,2449.9,2449.4,0.0061192]
[1725199999061,0.4143292,2449.9,2449.5,5.33849495]
[1725199999260,0.0061192,2449.9,2449.5,5.33849495]
[1725199999475,0.40826,2449.5,2449.4,0.0061192]
[1725199999964,1.0207,2449.4,2448.3,1.2175]
[1725200000271,0.40837,2448.9,2448.3,2.03475]
[1725200000469,0.40834,2449.1,2448.3,1.6263]
[1725200000658,0.40834,2449.1,2448.5,0.40842]
[1725200000860,0.40834,2449.1,2448.6,0.0061192]
[1725200001067,0.40835,2449.0,2448.6,5.33024519]
[1725200001474,3.2078,2449.5,2448.6,5.33024519]
[1725200001657,0.40828,2449.4,2448.8,0.40836]
[1725200001861,1.2454,2449.6,2448.8,3.2078]
[1725200002166,7.60926413,2449.5,2448.9,5.26631258]
[1725200002362,0.40833,2449.2,2448.6,0.4145192]
[1725200002576,7.60926413,2449.5,2448.7,5.26631258]
[1725200002760,0.40836,2448.9,2448.6,0.0061192]
[1725200002964,1.0207,2449.4,2448.6,0.0061192]
[1725200003163,2.28900602,2449.6,2448.7,5.19465261]
[1725200003364,1.2454,2449.6,2448.8,3.2078]
[1725200003776,3.2078,2449.8,2449.3,0.40829]
[1725200003777,0.40822,2449.8,2449.3,0.40829]
[1725200004369,0.40822,2449.8,2449.1,3.2078]
[1725200004663,0.40821,2449.8,2449.3,0.40829]
[1725200004859,0.4143192,2449.9,2449.3,0.40829]
[1725200005066,0.4143192,2449.9,2449.2,5.25389375]
[1725200005067,0.40822,2449.8,2449.2,5.25389375]
[1725200005275,0.40824,2449.7,2449.2,5.25389375]
[1725200005570,0.40825,2449.6,2449.2,5.25389375]
[1725200005772,3.2078,2449.8,2449.1,3.2078]
[1725200005966,0.40829,2449.4,2449.1,3.2078]
[1725200006370,0.40827,2449.5,2449.1,3.2078]
[1725200007078,0.40826,2449.6,2449.1,3.2078]
[1725200007267,1.0266592,2449.9,2449.1,3.2078]
[1725200007463,7.69116361,2449.7,2449.1,3.2078]
[1725200007660,0.4083,2449.3,2449.1,3.2078]
[1725200008380,0.40829,2449.4,2449.1,3.2078]
[1725200008571,0.5877,2449.6,2449.1,3.2078]
[1725200008766,0.4143292,2449.9,2449.3,0.40829]
[1725200008980,0.0061192,2449.9,2449.4,0.40826]
[1725200009276,0.0061192,2449.9,2449.4,5.63211286]
[1725200009477,0.0061192,2449.9,2449.4,0.40826]
[1725200009668,0.4143192,2449.9,2449.5,5.22385286]
[1725200010573,0.0061192,2449.9,2449.8,0.40821]
[1725200010878,0.0061192,2449.9,2449.7,0.40822]
[1725200011375,0.0061192,2449.9,2449.8,5.23613756]
[1725200011580,0.0061192,2449.9,2449.8,5.64434756]
[1725200011973,0.0061192,2449.9,2449.8,9.72594756]
[1725200012479,0.0061192,2449.9,2449.8,9.31773756]
[1725200012676,0.0061192,2449.9,2449.8,5.23613756]
[1725200012878,4.0877192,2449.9,2449.4,3.2078]
[1725200013082,1.02054,2449.8,2449.1,3.2078]
[1725200013288,3.2078,2449.6,2449.1,3.2078]
[1725200013482,3.2078,2449.6,2449.2,5.34140458]
[1725200013671,0.4083,2449.3,2449.2,5.34140458]
[1725200013986,2.60901506,2449.7,2448.8,3.2078]
[1725200014173,2.28080602,2449.8,2449.3,0.40828]
[1725200014475,1.04972522,2449.9,2449.4,5.27147928]
[1725200014674,1.04972522,2449.9,2449.5,0.40825]
[1725200014983,1.04972522,2449.9,2449.6,5.21174968]
[1725200014984,1.45792522,2449.9,2449.6,5.21174968]
[1725200015279,1.04972522,2449.9,2449.5,5.21174968]
[1725200015574,0.0061192,2449.9,2449.4,5.62001968]
[1725200015774,1.04972522,2449.9,2449.4,5.21174968]
[1725200015977,0.40823,2449.8,2449.3,0.5946]
[1725200016178,0.40824,2449.7,2449.3,0.5946]
[1725200016481,2.07022522,2449.9,2449.2,3.2078]
[1725200016684,0.40827,2449.5,2449.2,3.2078]
[1725200016871,0.40826,2449.6,2449.2,3.2078]
[1725200017068,0.40827,2449.5,2449.2,3.2078]
[1725200017273,1.64760602,2449.8,2449.2,3.2078]
[1725200017274,0.40828,2449.4,2449.2,3.2078]
[1725200017474,1.04360602,2449.7,2449.2,3.2078]
[1725200017669,0.4083,2449.3,2449.2,3.2078]
[1725200018179,0.40828,2449.4,2449.2,3.2078]
[1725200018369,0.4083,2449.3,2449.2,3.2078]
[1725200018678,0.6215,2449.6,2449.2,3.2078]
[1725200019079,1.02975,2449.6,2449.2,3.2078]
[1725200019471,1.02975,2449.6,2449.2,3.61611]
[1725200019472,0.6215,2449.6,2449.2,3.61611]
[1725200019690,0.6215,2449.6,2449.2,3.2078]
[1725200020076,1.04360602,2449.8,2449.3,5.37722004]
[1725200020280,1.04972522,2449.9,2449.3,5.37722004]
[1725200020475,1.04972522,2449.9,2449.2,3.2078]
[1725200020476,0.40825,2449.6,2449.2,3.2078]
[1725200020670,0.40823,2449.7,2449.2,3.6161]
[1725200020878,1.04360602,2449.8,2449.3,5.78551004]
[1725200021079,1.45793522,2449.9,2449.3,5.78551004]
[1725200021378,1.45792522,2449.9,2449.4,0.40828]
[1725200021573,1.45792522,2449.9,2449.3,5.37722004]
[1725200021574,0.40821,2449.8,2449.3,5.78551004]
[1725200021774,1.45181602,2449.8,2449.2,3.6161]
[1725200021974,1.45792522,2449.9,2449.4,5.22930822]
[1725200022176,0.4143192,2449.9,2449.4,5.63757822]
[1725200022384,0.0061192,2449.9,2449.3,0.6218]
[1725200022573,0.0061192,2449.9,2449.5,5.22930822]
[1725200022784,0.0061192,2449.9,2449.5,5.63755822]
[1725200023072,0.4143192,2449.9,2449.4,0.40827]
[1725200023278,0.40824,2449.7,2449.3,0.6218]
[1725200023873,3.2078,2449.4,2448.6,0.0061192]
[1725200024076,0.40835,2449.0,2448.6,0.0061192]
[1725200024280,1.04360602,2449.1,2448.6,0.0061192]
[1725200024488,0.4084,2448.7,2448.6,0.0061192]
[1725200024671,4.4924,2448.7,2448.6,0.0061192]
[1725200025075,13.7002,2448.7,2447.9,1.2287]
[1725200025283,0.40851,2448.1,2447.8,3.2078]
[1725200025487,4.77320904,2448.3,2447.5,3.2078]
[1725200025678,7.46472735,2448.0,2447.2,0.40864]
[1725200025878,3.2078,2448.0,2447.4,5.23902081]
[1725200026181,3.2078,2448.0,2447.5,0.0061192]
[1725200026182,0.0061192,2447.9,2447.5,0.0061192]
[1725200026983,0.0061192,2447.9,2447.5,0.4147092]
[1725200027183,0.0061192,2447.9,2447.7,0.40856]
[1725200027686,0.0061192,2447.9,2447.8,5.21850622]
[1725200028081,0.0061192,2447.9,2447.7,5.69009683]
[1725200028281,0.0061192,2447.9,2447.7,0.40856]
[1725200028587,0.0061192,2447.9,2447.8,5.28153683]
[1725200028985,0.0061192,2447.9,2447.8,4.49415]
[1725200029178,0.0061192,2447.9,2447.6,0.6029]
[1725200029378,0.0061192,2447.9,2447.6,5.09707]
[1725200029686,4.0917192,2447.9,2447.5,0.0061192]
[1725200029883,0.40856,2447.7,2447.5,0.0061192]
[1725200030087,4.0917192,2447.9,2447.5,0.0061192]
[1725200030088,0.40858,2447.6,2447.5,0.0061192]
[1725200030391,0.40857,2447.7,2447.5,0.0061192]
[1725200030585,4.58854704,2447.6,2446.7,3.2078]
[1725200030783,3.2078,2447.5,2446.7,3.2078]
[1725200030985,3.2078,2447.5,2446.8,5.3149027]
[1725200031192,0.40866,2447.2,2446.8,5.3149027]
[1725200031493,4.73394044,2447.4,2446.8,5.3149027]
[1725200031494,0.40869,2447.0,2446.8,0.0061192]
[1725200031793,4.0864,2447.3,2446.8,0.0061192]
[1725200031988,4.66235393,2446.9,2446.8,0.0061192]
[1725200032191,5.61796604,2447.0,2446.8,0.0061192]
[1725200032386,4.0872,2446.9,2446.8,0.0061192]
[1725200032891,4.51046787,2446.9,2446.8,0.0061192]
[1725200033095,3.61645,2447.2,2446.8,0.0061192]
[1725200033285,3.2078,2447.2,2446.8,0.0061192]
[1725200033891,3.2078,2446.9,2446.2,0.4088]
[1725200034097,8.2953902,2447.1,2446.0,3.2078]
[1725200034098,4.2089902,2447.1,2446.0,3.2078]
[1725200034296,3.2078,2447.2,2446.3,5.21189206]
[1725200034589,3.2078,2447.2,2446.1,8.92108108]
[1725200034796,3.2078,2447.2,2446.0,3.2078]
[1725200034797,0.40868,2447.0,2446.4,0.0061192]
[1725200035093,3.6165,2446.9,2446.4,0.0061192]
[1725200035295,3.2078,2446.9,2446.4,0.0061192]
[1725200035501,3.2078,2447.0,2446.4,0.4148992]
[1725200036101,3.2078,2447.0,2446.4,0.0061192]
[1725200036485,0.5972,2447.4,2446.5,5.27347525]
[1725200036486,3.805,2447.4,2446.5,5.27347525]
[1725200036687,3.805,2447.4,2446.6,0.40874]
[1725200036895,4.21362,2447.4,2446.6,0.40874]
[1725200037096,0.5972,2447.4,2446.8,0.4087]
[1725200037412,3.2078,2447.0,2446.4,0.0061192]
[1725200037586,0.40866,2447.1,2446.4,0.0061192]
[1725200037786,4.31976439,2446.9,2446.4,0.4148892]
[1725200038096,0.5972,2447.4,2446.8,0.40871]
[1725200038297,1.00582,2447.4,2446.7,0.40872]
[1725200038591,1.00582,2447.4,2446.5,0.40875]
[1725200038592,7.93620439,2447.3,2446.5,0.40875]
[1725200038794,7.93620439,2447.3,2446.6,0.40874]
[1725200039582,0.40865,2447.2,2446.5,5.66607122]
[1725200039993,4.27046858,2447.1,2446.5,5.66607122]
[1725200040186,4.27046858,2447.1,2446.5,5.25731122]
[1725200040387,0.4087,2446.9,2446.4,0.0061192]
[1725200040586,0.40872,2446.8,2446.4,0.0061192]
[1725200040900,4.85007109,2446.9,2446.4,0.0061192]
[1725200041199,0.40871,2446.8,2446.4,0.0061192]
[1725200041587,4.49591,2446.8,2446.4,0.0061192]
[1725200041793,4.40890551,2446.7,2446.4,0.0061192]
[1725200042189,8.49610551,2446.7,2446.4,0.0061192]
[1725200042396,1.0032,2446.9,2446.4,0.0061192]
[1725200043396,0.40871,2446.8,2446.4,0.0061192]
[1725200043598,4.76462771,2446.8,2446.4,0.0061192]
[1725200043793,8.85182771,2446.8,2446.4,0.0061192]
[1725200044193,0.5945,2446.9,2446.5,0.40875]
[1725200044399,0.5945,2446.9,2446.4,0.4148892]
[1725200044696,0.5945,2446.9,2446.4,0.0061192]
[1725200044890,0.40874,2446.7,2446.4,0.0061192]
[1725200045092,0.5945,2446.9,2446.4,0.0061192]
[1725200045286,0.40874,2446.7,2446.4,0.0061192]
[1725200045494,4.70941323,2446.8,2446.4,0.0061192]
[1725200045695,1.0032,2446.9,2446.4,0.0061192]
[1725200046393,1.0032,2446.9,2446.4,0.4148992]
[1725200046699,1.0032,2446.9,2446.4,0.0061192]
[1725200047092,0.5945,2446.9,2446.4,0.0061192]
[1725200047289,1.00582,2447.4,2446.4,0.0061192]
[1725200047493,0.40867,2447.1,2446.5,5.28365772]
[1725200047704,0.40875,2446.6,2446.4,0.0061192]
[1725200047904,4.0872,2446.6,2446.4,0.0061192]
[1725200048604,9.23122763,2446.5,2446.4,0.0061192]
[1725200048797,5.14402763,2446.5,2446.4,0.0061192]
[1725200049000,4.49596,2446.5,2446.4,0.0061192]
[1725200049197,0.6338,2446.9,2446.4,0.0061192]
[1725200049401,0.40872,2446.8,2446.4,0.0061192]
[1725200049701,0.40875,2446.6,2446.4,0.0061192]
[1725200049892,0.40876,2446.5,2446.4,0.0061192]
[1725200050093,8.98557637,2446.5,2446.4,0.0061192]
[1725200050508,0.5816,2446.7,2446.4,0.0061192]
[1725200051404,0.40876,2446.5,2446.4,0.0061192]
[1725200051601,8.61269181,2446.6,2446.4,0.0061192]
[1725200051602,9.02145181,2446.6,2446.4,0.0061192]
[1725200051903,4.0872,2446.5,2446.4,0.0061192]
[1725200052092,4.93425181,2446.6,2446.4,0.0061192]
[1725200052093,4.49595,2446.6,2446.4,0.0061192]
[1725200052298,4.0872,2446.5,2446.4,0.0061192]
[1725200052502,9.05427855,2446.5,2446.4,0.0061192]
[1725200052806,15.05427855,2446.5,2446.4,0.0061192]
[1725200053307,8.64551855,2446.5,2446.4,0.0061192]
[1725200053498,9.05427855,2446.5,2446.4,0.0061192]
[1725200053697,8.64551855,2446.5,2446.4,0.0061192]
[1725200054007,15.05427855,2446.5,2446.4,0.0061192]
[1725200054306,8.64551855,2446.5,2446.4,0.0061192]
[1725200054905,15.05427855,2446.5,2446.4,0.0061192]
[1725200056004,9.05427855,2446.5,2446.4,0.0061192]
[1725200056399,4.55831855,2446.5,2446.4,0.0061192]
[1725200056701,1.0425,2446.9,2446.4,0.4148892]
[1725200056902,1.0425,2446.9,2446.4,0.0061192]
[1725200056903,0.6338,2446.9,2446.4,0.0061192]
[1725200057104,4.84066314,2446.8,2446.4,0.0061192]
[1725200057308,0.40872,2446.8,2446.4,0.0061192]
[1725200057497,0.6338,2446.9,2446.4,0.0061192]
[1725200057692,0.40875,2446.6,2446.4,0.0061192]
[1725200058097,4.6035564,2446.8,2446.4,0.0061192]
[1725200058098,0.40874,2446.7,2446.4,0.0061192]
[1725200058299,5.0122764,2446.8,2446.4,0.0061192]
[1725200058603,0.40873,2446.7,2446.4,0.0061192]
[1725200058804,5.0122864,2446.7,2446.4,0.0061192]
[1725200058999,0.40873,2446.7,2446.4,0.0061192]
[1725200059200,0.40871,2446.8,2446.4,0.0061192]
[1725200059403,0.40874,2446.7,2446.4,0.0061192]
[1725200059924,0.40875,2446.6,2446.4,0.0061192]
[1725200060113,3.2078,2446.8,2446.4,0.0061192]
[1725200060114,0.40876,2446.5,2446.4,0.0061192]
[1725200060612,8.82162645,2446.5,2446.4,0.0061192]
[1725200061000,4.32566645,2446.5,2446.4,0.0061192]
[1725200061196,0.40872,2446.8,2446.4,4.0933192]
[1725200061405,0.6338,2446.9,2446.4,0.0061192]
[1725200061406,0.40874,2446.7,2446.4,0.0061192]
[1725200061898,4.76931743,2446.6,2446.4,0.0061192]
[1725200062108,0.40876,2446.6,2446.4,0.0061192]
[1725200062312,0.40876,2446.5,2446.4,0.0061192]
[1725200062806,4.49596,2446.5,2446.4,0.0061192]
[1725200064002,10.49596,2446.5,2446.4,0.0061192]
[1725200064310,18.14539098,2446.5,2446.4,0.0061192]
[1725200065809,0.6338,2446.9,2446.4,0.0061192]
[1725200066009,0.40871,2446.8,2446.4,0.0061192]
[1725200066215,1.04251,2446.9,2446.4,0.4148992]
[1725200066410,0.6338,2446.9,2446.4,0.4148892]
[1725200066606,0.6338,2446.9,2446.4,0.0061192]
[1725200067307,0.40873,2446.7,2446.4,0.0061192]
[1725200067906,0.40875,2446.6,2446.4,0.0061192]
[1725200068611,0.40874,2446.7,2446.4,0.0061192]
[1725200068908,0.40873,2446.7,2446.4,0.0061192]
[1725200069110,0.40873,2446.7,2445.4,3.2078]
[1725200069111,3.2078,2446.5,2445.4,3.2078]
[1725200069306,3.2078,2446.4,2445.4,3.2078]
[1725200069609,0.40877,2446.5,2445.9,0.40885]
[1725200069812,3.7573,2446.6,2446.0,0.5405]
[1725200070012,3.7573,2446.6,2446.0,5.84234596]
[1725200070204,0.00613209,2446.5,2446.0,5.84234596]
[1725200070409,0.40882,2446.2,2445.8,5.42362998]
[1725200070610,0.40882,2446.2,2445.7,3.2078]
[1725200070805,4.69921926,2446.1,2445.7,3.2078]
[1725200071205,0.40882,2446.2,2445.7,3.2078]
[1725200071408,3.2078,2446.0,2445.4,3.2078]
[1725200071609,4.29702814,2446.1,2445.4,3.2078]
[1725200071807,3.2078,2445.5,2445.0,1.0]
[1725200072005,4.089,2445.0,2443.6,1.06687134]
[1725200072216,3.2078,2445.1,2443.1,1.60067399]
[1725200072217,0.40928,2443.5,2443.1,1.60067399]
[1725200072424,3.2078,2443.3,2442.8,2.59022576]
[1725200072618,3.2078,2443.2,2442.5,0.2010082]
[1725200072916,3.2078,2442.7,2442.4,8.80330432]
[1725200073102,3.2078,2443.1,2442.4,8.80330432]
[1725200073302,3.2078,2443.1,2443.0,0.97847705]
[1725200073622,3.2078,2443.1,2441.4,3.2078]
[1725200073623,0.00613209,2442.8,2441.4,3.2078]
[1725200073909,3.2078,2442.2,2441.8,0.97847705]
[1725200074111,3.2078,2441.9,2441.0,0.0404]
[1725200074319,3.2078,2441.4,2441.0,0.0404]
[1725200074611,3.2078,2441.1,2441.0,0.0404]
[1725200074819,4.49075572,2442.1,2441.0,0.0404]
[1725200074820,0.04881784,2441.3,2441.0,1.01887705]
[1725200075007,0.04881784,2441.3,2441.2,3.2078]
[1725200075321,3.63687035,2441.9,2441.3,4.5056]
[1725200075618,1.0412419,2443.3,2441.5,0.4096]
[1725200075619,3.2078,2443.3,2441.5,0.4096]
[1725200075807,3.2078,2443.3,2441.3,0.4096]
[1725200075808,0.28403368,2441.8,2441.4,9.03626289]
[1725200076007,2.73937035,2441.6,2440.7,3.2078]
[1725200076208,3.2078,2441.8,2441.3,8.62666289]
[1725200076405,3.2078,2441.5,2441.3,8.62666289]
[1725200076603,3.2078,2441.5,2440.2,8.62666289]
[1725200076826,3.2078,2441.5,2438.8,3.2078]
[1725200076827,3.2078,2440.3,2438.8,3.2078]
[1725200077117,3.2078,2439.1,2438.5,3.2078]
[1725200077416,7.3078,2439.1,2438.0,3.2078]
[1725200077714,7.3078,2439.1,2438.8,3.5993051]
[1725200077715,2.93022679,2439.1,2438.8,3.5993051]
[1725200078103,4.1,2439.0,2438.1,7.71693596]
[1725200078310,7.7328,2439.0,2438.9,3.5993051]
[1725200078511,1.8010249,2439.0,2438.9,9.2078]
[1725200078711,3.2078,2441.0,2439.2,3.2078]
[1725200078919,0.61481912,2441.2,2440.5,3.2078]
[1725200079212,0.61481912,2441.2,2441.1,3.2078]
[1725200079415,3.2078,2443.1,2441.8,28.996]
[1725200079610,1.0412419,2445.0,2441.1,3.2078]
[1725200079611,4.1008,2442.2,2441.9,3.2078]
[1725200079913,3.2078,2443.7,2442.0,3.499]
[1725200080119,3.2078,2443.8,2442.5,3.2078]